bitfinex-derivatives/quotes_ETHF0:USTF0_20250116
["timestamp","ask_amount","ask_price","bid_price","bid_amount"]
[1736985748874,0.4707,3459.7,3458.6,6.29968522]
[1736985749078,4.4558,3460.4,3459.5,3.2078]
[1736985749275,0.57796,3460.3,3459.9,0.578]
[1736985749482,0.57796,3460.3,3460.0,0.578]
[1736985749680,0.57796,3460.3,3459.6,3.09188522]
[1736985749875,0.57796,3460.3,3459.9,0.57802]
[1736985750082,3.2078,3460.8,3459.6,3.57278522]
[1736985750285,0.57795,3460.3,3459.6,0.4809]
[1736985750480,0.57804,3459.8,3459.6,0.4809]
[1736985750682,0.57805,3459.7,3459.5,3.2078]
[1736985750885,0.57807,3459.6,3459.5,3.2078]
[1736985751684,0.57807,3459.6,3458.9,1.05907]
[1736985751685,0.57813,3459.3,3458.9,4.26687]
[1736985751883,3.2078,3460.0,3458.9,3.2078]
[1736985751884,0.57816,3459.1,3458.9,3.2078]
[1736985752188,0.57813,3459.3,3458.9,3.78597]
[1736985752383,0.57814,3459.2,3458.9,3.78597]
[1736985752588,3.2078,3459.5,3458.5,3.2078]
[1736985752781,0.57819,3458.9,3458.5,3.2078]
[1736985752981,3.2078,3459.5,3458.5,3.2078]
[1736985753291,1.7039,3459.9,3458.5,3.2078]
[1736985753292,0.57817,3459.0,3458.5,3.2078]
[1736985753594,0.57828,3458.4,3458.1,3.78369522]
[1736985753889,3.2078,3458.7,3458.1,3.20538522]
[1736985754092,3.2078,3458.7,3458.1,0.1135]
[1736985754288,0.5783,3458.2,3458.1,0.1135]
[1736985755991,0.4733,3458.9,3458.1,0.1135]
[1736985756192,0.57819,3458.9,3458.6,0.57823]
[1736985756495,2.69321,3459.6,3458.6,0.57823]
[1736985756496,0.57818,3459.0,3458.7,3.2078]
[1736985756996,3.2078,3459.6,3458.7,6.29968522]
[1736985757191,0.57814,3459.2,3458.8,0.5782]
[1736985757393,3.2078,3459.6,3458.7,6.29968522]
[1736985757591,0.57818,3459.0,3458.7,6.29968522]
[1736985757801,0.57814,3459.2,3458.8,0.57819]
[1736985758094,0.5781,3459.5,3459.1,3.78594]
[1736985758293,0.4531,3459.7,3459.1,3.2078]
[1736985758484,0.485,3459.9,3459.2,0.57812]
[1736985758485,0.57809,3459.5,3459.2,0.57812]
[1736985758689,0.485,3459.9,3459.1,3.2078]
[1736985758884,0.57816,3459.1,3458.8,0.57819]
[1736985759191,3.2078,3459.6,3458.7,3.2078]
[1736985759690,3.2078,3459.6,3458.7,3.78601]
[1736985759893,3.2078,3459.6,3458.7,3.2078]
[1736985760298,0.57818,3459.0,3458.7,3.78601]
[1736985760492,1.44522,3459.5,3458.3,4.1484]
[1736985760693,0.5782,3458.9,3458.7,3.2078]
[1736985760894,0.5782,3458.8,3458.7,3.2078]
[1736985761195,0.5781,3459.4,3458.7,3.2078]
[1736985761394,1.44522,3459.5,3458.7,3.2078]
[1736985761699,0.5782,3458.8,3458.7,3.2078]
[1736985761992,0.57822,3458.7,3458.6,0.1126]
[1736985763400,4.23232,3458.7,3458.6,0.1126]
[1736985764795,0.57835,3457.9,3457.8,3.2078]
[1736985765193,1.44537,3459.2,3457.8,3.56943402]
[1736985765393,1.4453,3459.4,3457.7,3.10227522]
[1736985765394,0.57824,3458.6,3458.4,3.2078]
[1736985765587,4.6532,3459.1,3458.0,3.2078]
[1736985765795,0.57832,3458.1,3458.0,3.2078]
[1736985765993,0.57832,3458.1,3457.8,0.57837]
[1736985766193,0.57832,3458.1,3457.7,3.10227522]
[1736985766194,3.2078,3458.7,3457.7,3.10227522]
[1736985766396,0.57837,3457.8,3457.7,0.01039]
[1736985766987,0.57839,3457.7,3457.6,3.2078]
[1736985767301,3.2078,3457.7,3456.9,3.2078]
[1736985767495,1.249,3458.0,3455.6,4.71816881]
[1736985767496,3.2078,3457.3,3456.5,3.2078]
[1736985767696,0.57858,3456.6,3456.5,3.2078]
[1736985769102,0.57857,3456.6,3456.5,3.2078]
[1736985769299,3.2078,3456.9,3455.4,3.2078]
[1736985769496,0.57872,3455.7,3455.4,3.78656]
[1736985769695,0.57871,3455.8,3455.4,3.78656]
[1736985769995,3.2078,3456.2,3455.4,3.2078]
[1736985770404,0.57875,3455.5,3455.4,3.2078]
[1736985770791,0.57882,3455.1,3454.9,3.2078]
[1736985770993,0.57884,3455.0,3454.9,3.2078]
[1736985771401,0.57884,3455.0,3454.6,0.5789]
[1736985771699,0.57885,3455.0,3454.6,0.5789]
[1736985771890,1.249,3455.6,3454.5,3.2078]
[1736985772088,3.2078,3455.2,3454.5,3.2078]
[1736985772300,0.5789,3454.7,3454.5,3.2078]
[1736985772503,0.57887,3454.8,3454.5,3.2078]
[1736985772697,3.2078,3455.2,3454.5,3.2078]
[1736985772899,0.57887,3454.8,3454.5,3.2078]
[1736985773201,0.57886,3454.9,3454.5,3.2078]
[1736985773395,3.2078,3455.2,3454.5,3.2078]
[1736985773702,2.898,3458.3,3454.5,3.2078]
[1736985773703,3.6775,3456.2,3455.1,3.2078]
[1736985773898,0.57873,3455.7,3455.1,3.2078]
[1736985774202,0.57873,3455.7,3455.2,0.5788]
[1736985774901,3.6775,3456.2,3455.1,3.2078]
[1736985775305,3.6775,3456.2,3455.2,0.57879]
[1736985775501,0.57872,3455.7,3455.2,0.57879]
[1736985775703,3.6775,3456.2,3455.1,3.2078]
[1736985775896,0.57875,3455.6,3455.1,3.7866]
[1736985776093,3.6775,3456.2,3455.1,3.2078]
[1736985776094,3.2078,3455.8,3455.1,3.2078]
[1736985776298,0.57872,3455.7,3455.2,0.57879]
[1736985776599,0.57876,3455.5,3455.1,3.2078]
[1736985776797,0.5788,3455.2,3455.1,3.2078]
[1736985776997,3.2078,3455.4,3454.6,3.2078]
[1736985777195,0.57889,3454.7,3454.6,3.2078]
[1736985777406,0.57889,3454.7,3454.2,3.78676]
[1736985777592,3.2078,3455.0,3454.2,3.2078]
[1736985777797,0.57891,3454.6,3454.2,3.78676]
[1736985777994,3.2078,3455.0,3454.2,3.2078]
[1736985778400,0.57887,3454.8,3454.4,0.57893]
[1736985778595,3.2078,3455.0,3454.2,3.2078]
[1736985778797,0.471,3455.3,3454.9,0.57885]
[1736985779004,1.04979,3455.3,3454.8,0.57886]
[1736985779198,0.471,3455.3,3455.0,0.57883]
[1736985779600,0.471,3455.3,3454.6,3.2078]
[1736985779899,1.82774,3455.6,3455.2,0.5788]
[1736985780104,0.57874,3455.6,3455.2,0.5788]
[1736985780503,3.78651,3455.8,3455.3,0.57877]
[1736985780807,3.78651,3455.8,3455.4,0.57876]
[1736985781008,0.57872,3455.7,3455.1,0.4732]
[1736985781303,0.57872,3455.7,3455.3,0.57877]
[1736985781503,0.57882,3455.1,3454.5,3.2078]
[1736985781803,3.2078,3455.8,3455.3,0.7235]
[1736985781804,0.57877,3455.4,3455.3,0.7235]
[1736985782309,0.5789,3454.6,3454.5,3.2078]
[1736985782504,3.2078,3455.0,3454.5,3.2078]
[1736985782701,0.5789,3454.6,3454.5,3.2078]
[1736985783005,0.4646,3454.9,3453.7,3.2078]
[1736985783205,0.57899,3454.2,3453.8,0.57903]
[1736985783407,3.2078,3454.6,3453.7,3.2078]
[1736985783602,0.57902,3454.0,3453.7,3.2078]
[1736985783806,0.57903,3453.9,3453.7,3.2078]
[1736985783997,0.57904,3453.8,3453.7,3.2078]
[1736985784306,0.57906,3453.7,3453.6,0.22299252]
[1736985784806,0.57917,3453.0,3452.9,3.2078]
[1736985785105,6.249,3453.7,3452.3,0.4389]
[1736985785106,3.2078,3453.3,3452.5,3.2078]
[1736985785606,0.57918,3453.0,3452.5,3.78705]
[1736985785805,0.5792,3452.9,3452.5,3.78705]
[1736985786405,0.5792,3452.9,3452.5,3.2078]
[1736985786905,0.4803,3453.2,3452.5,3.2078]
[1736985787212,0.57919,3453.0,3452.5,3.2078]
[1736985787404,0.57923,3452.7,3452.5,3.2078]
[1736985787598,0.57924,3452.6,3452.5,3.2078]
[1736985787803,1.25,3452.8,3451.8,3.2078]
[1736985788200,0.57931,3452.2,3451.8,3.2078]
[1736985788405,0.5793,3452.3,3451.8,3.2078]
[1736985788607,0.57932,3452.2,3451.8,3.2078]
[1736985788909,1.25,3452.8,3451.8,3.2078]
[1736985789311,0.57931,3452.2,3451.8,3.2078]
[1736985789914,1.25,3452.8,3451.8,3.2078]
[1736985789915,0.57936,3451.9,3451.8,3.2078]
[1736985790414,3.2078,3452.0,3451.2,3.2078]
[1736985790604,1.25,3452.0,3451.2,3.2078]
[1736985790800,1.8293,3452.3,3451.7,3.2078]
[1736985791004,1.25,3452.3,3451.7,3.2078]
[1736985791213,0.57937,3451.8,3451.7,3.2078]
[1736985791512,1.25,3452.3,3451.7,3.2078]
[1736985792111,0.57937,3451.8,3451.7,3.2078]
[1736985792409,0.57937,3451.8,3451.0,0.5795]
[1736985792410,3.2078,3452.0,3451.2,3.2078]
[1736985792612,0.57938,3451.8,3451.2,3.78727]
[1736985792912,0.5794,3451.7,3451.2,3.2078]
[1736985793112,1.17815746,3452.0,3451.2,3.2078]
[1736985793514,0.5794,3451.7,3451.2,3.2078]
[1736985793813,1.25,3452.3,3451.6,3.2078]
[1736985794208,0.57935,3452.0,3451.6,3.2078]
[1736985794407,1.25,3452.3,3451.6,3.2078]
[1736985794408,0.57939,3451.7,3451.6,3.2078]
[1736985795303,0.57944,3451.4,3451.1,3.2078]
[1736985795509,3.2078,3451.9,3451.1,3.2078]
[1736985795814,0.57939,3451.7,3451.6,3.2078]
[1736985796206,1.25,3452.3,3451.2,3.2078]
[1736985796207,0.57943,3451.5,3451.2,3.2078]
[1736985796415,1.25,3452.3,3449.9,3.2078]
[1736985796416,1.44869,3451.2,3449.9,3.2078]
[1736985796604,3.09188522,3450.7,3449.5,3.2078]
[1736985796908,0.57964,3450.3,3449.5,3.2078]
[1736985797115,3.2078,3450.8,3449.9,3.78749]
[1736985797313,0.57962,3450.4,3450.0,0.4593]
[1736985797512,3.2078,3450.8,3450.0,0.4593]
[1736985797711,3.2078,3450.3,3449.5,3.2078]
[1736985798107,0.57969,3450.0,3449.5,3.2078]
[1736985798309,3.2078,3450.3,3449.5,3.2078]
[1736985798519,0.57968,3450.0,3449.5,3.78756]
[1736985798809,0.57968,3450.0,3449.5,3.2078]
[1736985799011,0.57966,3450.1,3449.5,3.78755]
[1736985799213,0.57968,3450.0,3449.5,3.78755]
[1736985799413,0.57967,3450.1,3449.5,3.78755]
[1736985799607,4.4588,3450.3,3449.5,3.2078]
[1736985799817,0.5797,3449.9,3449.5,3.2078]
[1736985800009,0.57971,3449.9,3449.5,3.2078]
[1736985801111,0.57965,3450.2,3449.5,3.2078]
[1736985801316,0.57962,3450.4,3450.0,0.57967]
[1736985801518,1.251,3450.6,3449.9,3.2078]
[1736985801719,3.2078,3450.7,3450.0,0.57967]
[1736985801918,4.4588,3450.7,3450.0,1.05837]
[1736985802215,0.57962,3450.4,3450.0,0.4787]
[1736985802416,0.5796,3450.5,3450.0,1.05837]
[1736985802719,0.57961,3450.4,3450.0,1.05837]
[1736985803116,0.57961,3450.4,3450.0,0.4787]
[1736985803312,4.4588,3450.7,3450.0,0.4787]
[1736985803516,3.2078,3451.5,3450.5,3.2078]
[1736985803815,3.2078,3451.5,3450.9,0.57952]
[1736985804017,0.57946,3451.3,3450.9,0.57952]
[1736985804215,3.2078,3451.5,3450.5,3.2078]
[1736985804715,0.57955,3450.8,3450.5,3.2078]
[1736985805120,1.261,3451.4,3450.5,3.2078]
[1736985805319,0.57958,3450.6,3450.5,3.2078]
[1736985805517,0.57957,3450.7,3450.5,3.2078]
[1736985805815,0.57956,3450.7,3450.5,3.2078]
[1736985806121,0.57958,3450.6,3450.5,3.578]
[1736985806721,0.57958,3450.6,3450.5,0.3702]
[1736985808316,3.78737,3450.7,3450.5,0.3702]
[1736985808521,1.261,3451.1,3450.5,0.3702]
[1736985808716,0.57956,3450.8,3450.5,0.3702]
[1736985808922,0.57956,3450.8,3450.5,0.8229]
[1736985809221,0.57957,3450.7,3450.5,0.8229]
[1736985809411,3.2078,3451.2,3450.5,0.8229]
[1736985809813,0.57958,3450.6,3450.5,0.8229]
[1736985810619,0.57958,3450.6,3450.5,0.3702]
[1736985811212,0.57958,3450.6,3449.3,0.4367]
[1736985811213,5.0,3450.6,3449.3,0.4367]
[1736985811409,0.57978,3449.4,3449.3,0.4367]
[1736985811614,2.74339997,3449.7,3448.8,3.6659]
[1736985811816,2.74339997,3449.3,3448.8,0.4581]
[1736985812523,3.32325997,3448.9,3448.8,0.4581]
[1736985813026,0.57986,3448.9,3448.8,0.4581]
[1736985813524,2.74339997,3449.8,3448.8,4.60871547]
[1736985813727,0.57973,3449.7,3449.3,0.57979]
[1736985813916,0.57975,3449.6,3449.2,0.5798]
[1736985814121,2.74339997,3450.4,3449.4,3.2078]
[1736985814419,3.2078,3450.5,3449.9,3.2078]
[1736985814620,0.57962,3450.4,3450.0,0.57967]
[1736985814822,0.57963,3450.3,3449.9,3.78748]
[1736985815221,0.57966,3450.2,3449.9,3.2078]
[1736985815425,0.57962,3450.4,3450.0,0.94219095]
[1736985815623,0.57962,3450.4,3449.9,3.2078]
[1736985815924,0.57964,3450.3,3450.0,0.3625012]
[1736985816123,0.57966,3450.1,3449.9,3.2078]
[1736985816322,3.2078,3450.5,3449.9,3.2078]
[1736985816523,0.57968,3450.0,3449.6,0.57974]
[1736985816720,0.57971,3449.8,3449.7,0.36252763]
[1736985817124,0.57971,3449.8,3449.5,3.2078]
[1736985817125,1.44903,3450.4,3449.5,3.2078]
[1736985817328,0.57974,3449.6,3449.5,3.2078]
[1736985817620,0.57974,3449.6,3449.5,3.57035711]
[1736985818127,0.57974,3449.6,3449.5,3.2078]
[1736985818525,2.02893,3449.9,3449.0,3.2078]
[1736985818730,0.57981,3449.2,3449.1,0.94273673]
[1736985818922,0.57981,3449.2,3449.1,0.36259105]
[1736985819926,3.2078,3449.6,3448.6,3.2078]
[1736985820228,3.2078,3449.6,3448.7,0.94284279]
[1736985820229,0.57988,3448.8,3448.7,0.94284279]
[1736985820917,0.57987,3448.9,3448.7,0.94284279]
[1736985821230,0.57987,3448.9,3448.6,3.78771]
[1736985821231,0.57976,3449.5,3448.9,0.57986]
[1736985821526,0.5798,3449.3,3449.0,4.15060344]
[1736985821723,3.2078,3449.6,3449.0,4.15060344]
[1736985821724,3.2078,3449.6,3449.1,0.36263184]
[1736985822033,3.2078,3449.6,3448.6,3.2078]
[1736985822227,3.2078,3449.6,3448.7,0.94283171]
[1736985822428,0.57986,3448.9,3448.8,0.36262937]
[1736985822623,0.57986,3449.0,3448.8,0.36262937]
[1736985822823,0.57986,3449.0,3448.9,0.36262937]
[1736985824422,11.32066765,3449.0,3447.7,3.2078]
[1736985824623,0.58005,3447.8,3447.7,3.2078]
[1736985825027,1.261,3448.0,3447.7,3.2078]
[1736985825223,0.58005,3447.8,3447.7,3.2078]
[1736985825427,0.58011,3447.5,3447.3,3.2078]
[1736985825722,0.58011,3447.4,3447.3,3.2078]
[1736985826125,1.261,3448.0,3447.3,3.2078]
[1736985826331,0.5801,3447.5,3447.3,3.2078]
[1736985826625,1.261,3448.0,3447.3,3.2078]
[1736985826830,0.58007,3447.7,3447.3,3.78793]
[1736985827127,1.261,3448.0,3447.3,3.2078]
[1736985827527,0.5801,3447.5,3447.3,3.2078]
[1736985827718,1.261,3448.0,3447.3,3.2078]
[1736985827925,1.261,3448.0,3447.7,3.2078]
[1736985827926,0.58003,3447.9,3447.7,3.2078]
[1736985828124,0.58005,3447.8,3447.7,3.2078]
[1736985828520,1.261,3448.0,3447.3,3.2078]
[1736985828730,6.32066765,3447.8,3446.9,3.2078]
[1736985829030,0.58018,3447.0,3446.9,3.2078]
[1736985829841,6.32066765,3447.8,3446.9,3.2078]
[1736985830026,0.58013,3447.3,3446.9,3.78799]
[1736985830221,3.2078,3447.8,3446.9,3.2078]
[1736985830432,0.58007,3447.7,3447.3,3.78792]
[1736985830632,0.58007,3447.7,3447.4,0.4803]
[1736985830830,0.5801,3447.5,3447.4,0.4803]
[1736985831430,0.58019,3447.0,3446.8,3.2078]
[1736985832034,1.45017,3447.7,3446.8,3.2078]
[1736985832236,0.5802,3446.9,3446.8,3.2078]
[1736985833330,0.58026,3446.5,3446.4,3.2078]
[1736985833537,3.2078,3446.9,3446.0,3.2078]
[1736985833830,0.5803,3446.3,3446.0,3.78814]
[1736985834036,0.58033,3446.2,3446.0,3.2078]
[1736985834534,0.58033,3446.1,3446.0,3.2078]
[1736985834728,0.58025,3446.6,3446.0,3.2078]
[1736985834934,0.58025,3446.6,3446.5,0.00657947]
[1736985835332,3.33091329,3446.6,3446.5,0.00657947]
[1736985836331,3.33091329,3446.6,3446.5,9.47e-06]
[1736985837232,8.33091329,3446.6,3446.5,9.47e-06]
[1736985837935,4.58891329,3446.6,3446.5,9.47e-06]
[1736985838136,9.58891329,3446.6,3446.5,9.47e-06]
[1736985838538,4.58891329,3446.6,3446.5,9.47e-06]
[1736985838839,9.58891329,3446.6,3446.5,9.47e-06]
[1736985839133,4.58891329,3446.6,3446.5,9.47e-06]
[1736985840638,9.58891329,3446.6,3446.5,9.47e-06]
[1736985840839,4.58891329,3446.6,3446.5,9.47e-06]
[1736985841240,9.58891329,3446.6,3446.5,9.47e-06]
[1736985843333,12.33957658,3446.6,3446.5,9.47e-06]
[1736985843538,0.58043,3445.5,3444.7,3.2078]
[1736985843744,1.45107,3445.6,3444.7,3.2078]
[1736985843745,2.75066329,3444.8,3444.7,3.2078]
[1736985843940,3.2078,3445.7,3444.7,3.2078]
[1736985843941,2.75066329,3445.2,3444.7,3.2078]
[1736985844135,3.33100329,3446.1,3445.7,0.58038]
[1736985844448,3.33100329,3446.1,3445.9,3.2078]
[1736985844449,2.75066329,3446.1,3445.9,3.2078]
[1736985844647,0.58035,3446.0,3445.9,3.2078]
[1736985844941,2.75066329,3446.1,3445.8,0.9563]
[1736985845140,0.58037,3445.9,3445.8,0.9563]
[1736985847244,0.58037,3445.9,3445.8,1.1884]
[1736985847446,2.75066329,3446.1,3445.8,1.1884]
[1736985847639,3.33101329,3446.1,3445.8,1.1884]
[1736985847840,2.75066329,3446.5,3445.9,3.2078]
[1736985848044,2.75066329,3446.5,3446.2,0.58031]
[1736985848242,3.33093329,3446.5,3446.0,0.58033]
[1736985848642,3.33093329,3446.5,3445.9,3.6811]
[1736985848643,2.75066329,3446.5,3445.9,3.6811]
[1736985848845,0.58035,3446.0,3445.9,0.4733]
[1736985849043,2.75066329,3446.1,3445.9,0.4733]
[1736985849044,3.33100329,3446.1,3445.9,0.4733]
[1736985849239,2.75066329,3446.1,3445.8,1.1884]
[1736985849439,0.58037,3445.9,3445.8,1.1884]
[1736985849751,0.58037,3445.9,3445.8,0.2321]
[1736985850249,2.75066329,3446.1,3445.8,0.2321]
[1736985850450,2.75066329,3446.4,3446.3,0.5803]
[1736985850741,3.2078,3446.7,3446.6,0.58025]
[1736985850947,2.75066329,3447.4,3446.6,3.2078]
[1736985851338,3.2078,3447.6,3447.3,0.58012]
[1736985851541,3.2078,3447.6,3446.6,3.2078]
[1736985851542,2.75066329,3448.2,3447.5,3.78789]
[1736985851742,1.259,3448.3,3447.0,3.2078]
[1736985851743,2.75066329,3447.8,3447.0,3.2078]
[1736985852050,2.75066329,3447.4,3447.1,0.476]
[1736985852356,0.58013,3447.3,3446.5,3.78806]
[1736985852549,0.58017,3447.1,3446.6,0.476]
[1736985852747,4.00966329,3447.4,3446.6,0.476]
[1736985852949,0.58021,3446.9,3446.6,0.476]
[1736985853151,3.2078,3447.2,3446.6,0.476]
[1736985853342,2.75066329,3447.0,3446.6,0.476]
[1736985853744,0.58023,3446.7,3446.6,0.476]
[1736985854352,2.75066329,3447.0,3446.6,0.476]
[1736985854549,0.5802,3446.9,3446.6,3.6838]
[1736985854751,0.58021,3446.8,3446.6,0.476]
[1736985854947,2.75066329,3447.0,3446.6,0.476]
[1736985855347,0.58022,3446.8,3446.6,0.476]
[1736985855544,2.75066329,3447.0,3446.2,3.2078]
[1736985855847,0.5803,3446.3,3446.2,3.2078]
[1736985856152,0.58035,3446.0,3445.9,0.4758]
[1736985856456,0.58035,3446.0,3445.8,0.2321]
[1736985856457,0.58037,3445.9,3445.8,0.2321]
[1736985856956,3.2078,3446.2,3445.8,0.2321]
[1736985857151,0.58037,3445.9,3445.8,0.2321]
[1736985859956,0.5805,3445.1,3445.0,0.4758]
[1736985862162,2.75066329,3445.3,3445.0,0.4758]
[1736985862457,3.2078,3445.5,3445.0,0.708]
[1736985862656,0.58047,3445.3,3445.0,0.708]
[1736985862856,0.58045,3445.4,3445.0,0.708]
[1736985863061,3.2078,3445.5,3445.0,0.708]
[1736985863260,0.58049,3445.2,3445.0,0.708]
[1736985863457,2.75066329,3445.3,3445.0,0.708]
[1736985863857,0.5805,3445.1,3445.0,0.708]
[1736985864262,0.5805,3445.1,3445.0,0.2322]
[1736985864458,0.58061,3444.5,3444.2,0.4801]
[1736985864658,2.75066329,3444.5,3444.2,0.4801]
[1736985865065,0.58064,3444.3,3444.2,0.4801]
[1736985866165,0.5807,3444.0,3443.5,3.78856]
[1736985866461,2.75066329,3443.8,3443.5,3.78856]
[1736985866767,2.75066329,3443.8,3443.5,3.2078]
[1736985867157,0.58075,3443.6,3443.5,3.2078]
[1736985867568,0.58079,3443.4,3443.3,0.4557]
[1736985867775,0.58081,3443.3,3443.0,3.2078]
[1736985867971,0.58081,3443.3,3442.7,1.03379]
[1736985868172,3.33139329,3443.8,3443.2,0.58081]
[1736985868380,2.75066329,3444.2,3443.4,3.2078]
[1736985868679,2.75066329,3444.2,3443.8,3.78851]
[1736985868983,2.75066329,3444.2,3443.9,0.4431]
[1736985869169,3.33132329,3444.2,3443.9,0.896]
[1736985869370,2.75066329,3444.2,3443.9,0.896]
[1736985869681,2.75066329,3444.2,3443.4,3.2078]
[1736985869682,0.58072,3443.8,3443.4,3.2078]
[1736985869980,0.58074,3443.7,3443.5,0.4431]
[1736985870177,2.75066329,3443.8,3443.5,0.4431]
[1736985870381,1.04106,3444.8,3444.2,0.58064]
[1736985870573,3.2078,3445.1,3444.4,0.58061]
[1736985870574,0.58053,3445.0,3444.4,0.58061]
[1736985870778,5.95846329,3445.1,3444.0,3.2078]
[1736985870779,3.7883,3445.1,3444.6,0.58058]
[1736985870978,2.75066329,3445.3,3444.9,3.2078]
[1736985871180,2.75066329,3445.6,3445.2,0.58048]
[1736985871480,2.75066329,3445.6,3445.4,0.58045]
[1736985871677,5.95846329,3446.0,3445.5,0.4761]
[1736985871876,5.95846329,3446.0,3445.5,1.05652]
[1736985872177,5.95846329,3446.0,3445.5,0.4761]
[1736985872383,2.75066329,3446.4,3445.7,3.2078]
[1736985872583,2.75066329,3446.4,3446.1,0.58032]
[1736985873083,2.75066329,3446.4,3446.3,3.2078]
[1736985874381,2.75066329,3446.8,3446.3,3.2078]
[1736985874587,2.75066329,3446.8,3446.5,0.58026]
[1736985874789,3.2078,3447.1,3446.8,0.58021]
[1736985874979,2.75066329,3447.2,3446.8,0.58021]
[1736985875278,2.75066329,3447.2,3446.7,3.2078]
[1736985875581,2.75066329,3447.2,3446.7,3.78803]
[1736985875780,2.75066329,3447.2,3446.7,3.2078]
[1736985876085,3.2078,3448.7,3448.3,0.57996]
[1736985876285,3.2078,3448.7,3448.2,0.57997]
[1736985876584,3.2078,3448.7,3448.3,0.57995]
[1736985876775,3.2078,3448.7,3448.2,0.57997]
[1736985876980,3.2078,3448.7,3448.3,0.57996]
[1736985877382,3.2078,3449.4,3448.5,3.2078]
[1736985877581,3.2078,3449.4,3448.2,2.75066329]
[1736985877582,0.57976,3449.6,3448.9,3.2078]
[1736985877785,3.78751,3449.8,3449.0,0.57983]
[1736985877979,3.78751,3449.8,3448.6,2.75066329]
[1736985877980,2.75066329,3450.1,3449.3,3.2078]
[1736985878182,0.57968,3450.0,3449.3,3.2078]
[1736985878574,2.75066329,3450.1,3449.3,3.2078]
[1736985878980,0.57972,3449.8,3449.3,3.2078]
[1736985879788,4.01066329,3450.1,3449.3,3.2078]
[1736985880089,0.57973,3449.7,3449.3,3.2078]
[1736985880280,3.2078,3450.3,3449.3,3.2078]
[1736985880584,0.57967,3450.1,3449.8,3.2078]
[1736985880783,1.26,3450.2,3449.4,3.2078]
[1736985880784,0.57969,3450.0,3449.4,3.2078]
[1736985880991,3.2078,3449.9,3448.9,3.2078]
[1736985881177,0.57968,3450.0,3449.4,3.2078]
[1736985881381,0.5797,3449.9,3449.4,3.2078]
[1736985881580,0.57968,3450.0,3449.4,3.2078]
[1736985881782,0.5797,3449.9,3449.4,3.2078]
[1736985882088,1.26,3450.2,3449.4,3.2078]
[1736985882285,0.57974,3449.7,3449.0,3.2078]
[1736985882483,3.2078,3449.8,3449.0,3.2078]
[1736985882791,4.4678,3449.8,3449.0,3.2078]
[1736985882993,0.57977,3449.5,3448.8,3.2078]
[1736985883287,1.26,3449.8,3449.2,3.2078]
[1736985883487,0.57975,3449.6,3449.2,3.2078]
[1736985883689,1.83971,3449.8,3449.2,3.2078]
[1736985883890,0.57973,3449.7,3449.2,3.2078]
[1736985884083,1.26,3449.8,3449.2,3.2078]
[1736985884286,0.57975,3449.6,3449.2,3.2078]
[1736985884585,4.4678,3449.8,3449.1,0.075]
[1736985884786,0.57973,3449.7,3449.1,0.075]
[1736985884981,0.57974,3449.6,3449.1,0.075]
[1736985885189,4.4678,3449.8,3449.1,0.075]
[1736985885385,0.57981,3449.2,3449.1,0.075]
[1736985887190,8.11360732,3449.2,3447.9,0.4851]
[1736985887398,0.57994,3448.5,3447.9,0.4851]
[1736985887590,3.2078,3448.6,3447.9,0.4851]
[1736985887896,0.57993,3448.5,3447.9,0.4851]
[1736985888091,3.2078,3448.6,3447.9,0.4851]
[1736985888300,0.58005,3447.8,3447.7,3.2078]
[1736985888499,3.2078,3448.2,3447.1,3.6547]
[1736985888698,0.58006,3447.7,3447.1,3.6547]
[1736985888894,1.259,3448.1,3447.1,3.6547]
[1736985889097,0.58006,3447.7,3447.1,0.4469]
[1736985889399,0.58009,3447.6,3447.2,3.2078]
[1736985889791,0.58007,3447.7,3447.2,3.2078]
[1736985891697,3.2078,3447.8,3447.2,3.2078]
[1736985891901,0.58008,3447.6,3447.2,3.2078]
[1736985892194,3.2078,3447.8,3447.2,3.2078]
[1736985892500,3.2078,3449.0,3448.4,0.57993]
[1736985892704,0.5798,3449.3,3448.7,0.57989]
[1736985892887,3.34653762,3450.2,3448.6,3.2078]
[1736985892888,3.2078,3450.0,3448.6,3.2078]
[1736985893093,0.57975,3449.6,3449.2,3.2078]
[1736985893601,0.57973,3449.7,3449.2,3.2078]
[1736985893792,3.2078,3450.0,3449.2,3.2078]
[1736985893993,0.57974,3449.6,3449.2,3.2078]
[1736985894187,3.2078,3450.0,3449.2,3.2078]
[1736985894188,0.57973,3449.7,3449.2,3.2078]
[1736985894394,3.2078,3450.0,3449.2,3.2078]
[1736985894601,0.57974,3449.7,3449.2,3.2078]
[1736985895290,0.57986,3449.0,3448.8,3.2078]
[1736985895499,0.57978,3449.4,3448.8,3.2078]
[1736985895696,1.274,3449.7,3448.8,3.2078]
[1736985896090,0.57986,3449.0,3448.8,3.2078]
[1736985896295,3.2078,3449.5,3448.8,3.2078]
[1736985896502,0.57981,3449.2,3448.8,3.2078]
[1736985896696,0.57983,3449.1,3448.8,3.2078]
[1736985897094,0.57983,3449.1,3448.7,0.4774]
[1736985897095,3.2078,3449.5,3448.7,3.6852]
[1736985897394,0.57992,3448.6,3448.3,3.2078]
[1736985897599,0.57995,3448.4,3447.8,4.23863]
[1736985897898,3.2078,3448.5,3447.4,3.6886]
[1736985898108,0.5801,3447.5,3447.4,3.2078]
[1736985898398,0.5801,3447.5,3446.5,3.56440732]
[1736985898399,1.45004,3448.0,3447.0,3.2078]
[1736985898600,0.58009,3447.6,3447.0,3.78797]
[1736985898800,1.274,3447.9,3447.0,3.2078]
[1736985899197,0.58005,3447.8,3447.0,3.2078]